Cogmind - Beta 13 @@@ ROGUE MODE // 2024.07.14 @ 04:10:03 Player: Xintrosi Result: Destroyed by D-53 Grenadier with Mini Grenade Launcher Performance ------------- Evolutions (0) 0 Regions Visited (4) 800 Robots Destroyed (43) 215 Value Destroyed (797) 797 Prototype IDs (23) 460 Alien Tech Used (0) 0 Bonus (262) 262 TOTAL SCORE: 2534 Bonus ------- Aligned with FarCom 300 Friendly Fire -38 Cogmind --------- Core Integrity 0/250 Matter 270/300 Energy 166/250 System Corruption 0% Temperature Cool (0) Movement Treading (480) Ox4 Location -9/Mines Parts ------- > --- POWER (1) -------- Ion Engine > --- PROPULSION (2) --- Light Treads > --- UTILITY (2) ------ Huge Storage Unit > --- WEAPON (2) ------- Latent Energy Streamer > --- INVENTORY (25) --- Ion Engine Ion Engine Light Ion Engine Heat Sink Large Storage Unit Small Matter Pod (50) Large Matter Pod (150) Sensor Array Seismic Detector Hacking Suite Beam Cannon Beam Cannon Beam Cannon Assault Rifle Assault Rifle Rocket Launcher Hammer Blade Trap Blade Trap Blade Trap Peak State ------------ > --- POWER ------------ Ion Engine > --- PROPULSION ------- Light Treads Light Treads > --- UTILITY ---------- Huge Storage Unit Structural Scanner > --- WEAPON ----------- Latent Energy Streamer > --- INVENTORY -------- Ion Engine Ion Engine Light Ion Engine Heat Sink Large Storage Unit Small Matter Pod Large Matter Pod Sensor Array Seismic Detector Hacking Suite Beam Cannon Beam Cannon Beam Cannon Assault Rifle Assault Rifle Rocket Launcher Hammer Blade Trap Blade Trap Blade Trap [Rating: 17] Favorites ----------- Power Light Nuclear Core Engine Ion Engine Power Core Light Nuclear Core Propulsion Light Treads Treads Light Treads Leg Aluminum Leg Wheel Wheel Utility Huge Storage Unit Device Heat Sink Storage Huge Storage Unit Processor Transport Network Coupler Weapon Grenade Launcher Energy Cannon Beam Cannon Ballistic Gun Assault Rifle Launcher Grenade Launcher Build | -11 -10 -10 -10 -9 ------- Run | Yrd Mat Min Exi Min Slots Evolved . | . . . . . Power . | . . . . . Propulsion . | . . . . . Utility . | . . . . . Weapon . | . . . . . Parts Attached 30 | 1 19 4 . 6 Power 6 | . 2 1 . 3 Engine 5 | . 2 . . 3 Core 1 | . . 1 . . Reactor . | . . . . . Propulsion 7 | . 4 1 . 2 Treads 3 | . 1 . . 2 Leg . | . . . . . Wheel 4 | . 3 1 . . Hover . | . . . . . Flight . | . . . . . Utility 6 | . 5 1 . . Device 3 | . 2 1 . . Storage 2 | . 2 . . . Processor 1 | . 1 . . . Hackware . | . . . . . Protection . | . . . . . Artifact . | . . . . . Weapon 11 | 1 8 1 . 1 Energy Gun . | . . . . . Energy Cannon 4 | . 3 . . 1 Ballistic Gun 4 | 1 3 . . . Ballistic Cannon . | . . . . . Launcher 3 | . 2 1 . . Special Weapon . | . . . . . Impact Weapon . | . . . . . Slashing Weapon . | . . . . . Piercing Weapon . | . . . . . Special Melee Weapon . | . . . . . Unidentified Prototypes . | . . . . . Parts Lost 12 | . 3 1 . 8 Power 3 | . 1 . . 2 Propulsion 5 | . 1 1 . 3 Utility 1 | . . . . 1 Weapon 3 | . 1 . . 2 Highest Loss Streak 7 | . 2 1 . 7 To Critical Strikes . | . . . . . Average Slot Usage (%) 98 | . 97 100 100 94 Engine 5 | . 14 . . 12 Core 8 | . . 13 14 . Treads 11 | . 6 14 14 15 Leg 4 | . 14 . . . Wheel 11 | . 6 14 14 12 Device 12 | . 7 14 14 14 Storage 14 | . 14 14 14 14 Processor 1 | . 3 . . . Energy Cannon 3 | . 6 2 . . Ballistic Gun 6 | . 21 . . . Launcher 17 | . . 25 28 23 Naked Turns . | . . . . . Heaviest Build 96 | 14 92 92 92 96 Greatest Support 40 | 20 20 10 10 40 Greatest Overweight (x) 9 | . 9 9 9 9 Average Overweight (x) 6 | . 2 9 9 7 Largest Inventory Capacity 25 | 8 25 25 25 25 Average Capacity 22 | 8 16 25 25 25 Most Carried 24 | 6 16 22 24 24 Average Carried 18 | 6 13 20 22 23 Final Capacity 25 | 8 25 25 25 25 Final Carried 24 | 6 16 22 24 20 Class Distribution -------------------- 100% | Mutant Dominant Class ---------------- Mutant | -10/Materials Mutant | -10/Mines Mutant | -10/Exiles Mutant | -9/Mines Resources | -11 -10 -10 -10 -9 ----------- Run | Yrd Mat Min Exi Min Matter Collected 989 | 210 512 192 . 75 Remotely . | . . . . . Salvage Created 916 | . 617 258 . 41 Parts 82 | . 52 19 . 11 Haulers Intercepted 2 | . 2 . . . Recyclers Shooed 1 | . 1 . . . Parts Field Recycled . | . . . . . Retrieved Matter . | . . . . . Parts Self-Destructed . | . . . . . Prevented . | . . . . . Kills | -11 -10 -10 -10 -9 ------- Run | Yrd Mat Min Exi Min Combat Hostiles Destroyed 33 | . 17 9 . 7 Guns 14 | . 14 . . . Cannons 1 | . 1 . . . AOE 18 | . 2 9 . 7 Classes Destroyed 10 | . 8 1 . 1 Worker 2 | . 1 1 . . Builder 1 | . 1 . . . Hauler 2 | . 2 . . . Recycler 1 | . . 1 . . Mechanic 1 | . 1 . . . Operator 1 | . 1 . . . Watcher 1 | . 1 . . . Swarmer 19 | . 9 3 . 7 Grunt 14 | . 8 6 . . Zionite 1 | . . . . 1 Best Kill Streak 5 | . 5 4 . 4 Combat Bots Only 4 | . 3 3 . 4 Max Kills in Single Turn 3 | . 3 2 . 3 Gunslinging 1 | . 1 . . . Exploded 3 | . 2 2 . 3 Melee . | . . . . . Uniques/NPCs Destroyed . | . . . . . Combat | -11 -10 -10 -10 -9 -------- Run | Yrd Mat Min Exi Min Hostile Shots Fired 123 | . 91 7 . 25 Missed 32 | . 27 1 . 4 Damage Taken 1508 | . 705 136 . 667 Core 254 | . 77 12 . 165 Absorbed by Shields . | . . . . . Core Remaining (%) 100 | 100 . . . . Volleys Fired 72 | . 59 10 . 3 Largest 2 | . 2 2 . 2 Hottest 120 | . 120 60 . 60 Shots Fired 135 | . 116 13 . 6 Gun 104 | . 104 . . . Cannon 11 | . 10 1 . . Launcher 20 | . 2 12 . 6 Special . | . . . . . Kinetic 104 | . 104 . . . Thermal 11 | . 10 1 . . Explosive 20 | . 2 12 . 6 Electromagnetic . | . . . . . Robot Hit Streak 8 | . 8 1 . . Robot Miss Streak 7 | . 7 2 . 1 Penetration Max . | . . . . . Secondary Targets 2 | . 2 . . . Max Gunslinging Chain 1 | . 1 . . . Shots Hit Robots 69 | . 68 1 . . Core Hits 62 | . 33 21 . 8 Critical Kills . | . . . . . Critical Parts Destroyed . | . . . . . Critical Strikes . | . . . . . Melee Attacks . | . . . . . Impact . | . . . . . Slashing . | . . . . . Piercing . | . . . . . Sneak Attacks . | . . . . . Combat Hostiles . | . . . . . Follow-up Attacks . | . . . . . Damage Inflicted 2253 | . 1239 637 . 377 Guns 907 | . 907 . . . Cannons 71 | . 71 . . . Explosions 1239 | . 261 601 . 377 Melee . | . . . . . Ramming 36 | . . 36 . . Kinetic 907 | . 907 . . . Thermal 210 | . 165 45 . . Explosive 1100 | . 167 556 . 377 Electromagnetic . | . . . . . Impact . | . . . . . Slashing . | . . . . . Piercing . | . . . . . Highest Corruption . | . . . . . Average Corruption . | . . . . . Corruption Purged . | . . . . . Corruption Blocked . | . . . . . Overload Shots . | . . . . . Overflow Damage 169 | . 139 2 . 28 Projectiles . | . . . . . Explosions 167 | . 139 . . 28 Melee 2 | . . 2 . . Knockbacks . | . . . . . Impact . | . . . . . Kinetic . | . . . . . Secondary . | . . . . . Self-Inflicted Damage 193 | . 107 60 . 26 Shots 6 | . 2 3 . 1 Rammed 2 | . . 2 . . Targets Rammed 2 | . . 2 . . Kicked . | . . . . . Crushed . | . . . . . Highest Temperature 90 | . 90 4 . . Average Temperature 33 | . 37 3 . . Received Heat Transfer 213 | . 174 39 . . Siege Activations . | . . . . . Robots Corrupted . | . . . . . Combat Hostiles . | . . . . . Parts Fried . | . . . . . Impact Corruptions 1 | . . 1 . . Robots Melted . | . . . . . Combat Hostiles . | . . . . . Parts Melted . | . . . . . Heat Transferred 248 | . 198 50 . . Parts Sabotaged . | . . . . . Parts Stolen . | . . . . . Parts Stripped . | . . . . . Power Chain Reactions . | . . . . . Alert | -11 -10 -10 -10 -9 ------- Run | Yrd Mat Min Exi Min Peak Influence 312 | . 312 295 . 203 Initial 86 | . . 86 . . Average 94 | . 125 65 . 167 Maximum Alert Level 1 | . 1 1 . 1 Low Security (%) 86 | 100 84 92 . 44 Level 1 13 | . 15 7 . 55 Level 2 . | . . . . . Level 3 . | . . . . . Level 4 . | . . . . . Level 5 . | . . . . . High Security . | . . . . . Max Security . | . . . . . Squads Dispatched 5 | . 5 . . . Investigation 4 | . 4 . . . Extermination . | . . . . . Reinforcement 1 | . 1 . . . Assault . | . . . . . Garrison . | . . . . . Intercept . | . . . . . Searches Triggered . | . . . . . Construction Impeded . | . . . . . Haulers Reinforced . | . . . . . Active Scanning Responses . | . . . . . Cargo Convoy Interrupts . | . . . . . Stealth | -11 -10 -10 -10 -9 --------- Run | Yrd Mat Min Exi Min Distress Signals . | . . . . . Communications Jammed . | . . . . . Distress Signals . | . . . . . Times Spotted 45 | . 24 5 . 16 Peak Tracking Total 4 | . 4 2 . 4 Tactical Retreats 1 | . 1 . . . Traps | -11 -10 -10 -10 -9 ------- Run | Yrd Mat Min Exi Min Traps Triggered . | . . . . . Indirectly . | . . . . . Trap Hack Attempts . | . . . . . Triggered . | . . . . . Disarmed . | . . . . . Reprogrammed . | . . . . . Reused . | . . . . . Traps Extracted . | . . . . . Installed . | . . . . . Triggered 1 | . . . . 1 Most Traps Carried 3 | . . 3 3 3 Machines | -11 -10 -10 -10 -9 ---------- Run | Yrd Mat Min Exi Min Machines Disabled 3 | . 1 2 . . Max in Single Turn 2 | . 1 2 . . Machines Repaired . | . . . . . Machines Dismantled . | . . . . . Machines Sabotaged . | . . . . . Overloaded Fab Kills . | . . . . . Hacking | -11 -10 -10 -10 -9 --------- Run | Yrd Mat Min Exi Min Machines Accessed 10 | . 8 . 2 . Terminals 6 | . 6 . . . Fabricators . | . . . . . Repair Stations . | . . . . . Recycling Units 2 | . 2 . . . Scanalyzers . | . . . . . Garrison Access . | . . . . . Total Hacks 29 | . 24 . 5 . Successful 10 | . 5 . 5 . Failed 18 | . 18 . . . Catastrophic 3 | . 3 . . . Database Lockouts 1 | . 1 . . . Manual 20 | . 19 . 1 . Terminals 16 | . 16 . . . Fabricators . | . . . . . Repair Stations . | . . . . . Recycling Units 8 | . 8 . . . Scanalyzers . | . . . . . Garrison Access . | . . . . . Terminal Hacks 7 | . 2 . 5 . Record 4 | . . . 4 . Robot Analysis 2 | . 2 . . . Derelict Proto ID Bank 1 | . . . 1 . Fabricator Hacks . | . . . . . Repair Station Hacks . | . . . . . Recycling Unit Hacks 1 | . 1 . . . Retrieve Components 1 | . 1 . . . Scanalyzer . | . . . . . Garrison Access Hacks . | . . . . . Unauthorized Hacks 2 | . 2 . . . Terminals . | . . . . . Fabricators . | . . . . . Repair Stations . | . . . . . Recycling Units 2 | . 2 . . . Tunnel 2 | . 2 . . . Scanalyzers . | . . . . . Garrison Access . | . . . . . Data Cores Recovered . | . . . . . Used . | . . . . . Hacking Detections 8 | . 8 . . . Full Trace Events 3 | . 3 . . . Feedback Events . | . . . . . Feedback Blocked . | . . . . . Robot Schematics Acquired . | . . . . . Robots Built . | . . . . . Authchips . | . . . . . Time . | . . . . . Total Robot Build Rating . | . . . . . Part Schematics Acquired . | . . . . . Parts Built . | . . . . . Authchips . | . . . . . Time . | . . . . . Total Part Build Rating . | . . . . . Parts Repaired . | . . . . . Time . | . . . . . Parts Recycled . | . . . . . Recycled Matter . | . . . . . Retrieved Matter . | . . . . . Retrieved Components 10 | . 10 . . . Parts Scanalyzed . | . . . . . Part Schematics Acquired . | . . . . . Parts Damaged . | . . . . . Bothacking | -11 -10 -10 -10 -9 ------------ Run | Yrd Mat Min Exi Min Used RIF Installer . | . . . . . Robots Hacked . | . . . . . Non-combat . | . . . . . Combat . | . . . . . Robot Hacks Applied . | . . . . . Relay Couplers Released . | . . . . . Fabnet Peak Effective % . | . . . . . Robots Rewired . | . . . . . Allies Hacked . | . . . . . Hacks Repelled . | . . . . . Allies | -11 -10 -10 -10 -9 -------- Run | Yrd Mat Min Exi Min Total Allies 1 | . . 1 . . Largest Group 1 | . . 1 . . Highest-Rated Group 31 | . . 31 . . Highest-Rated Ally 31 | . . 31 . . Total Orders . | . . . . . Ally Attacks . | . . . . . Total Damage . | . . . . . Kills . | . . . . . Allies Corrupted . | . . . . . Allies Melted . | . . . . . Intel | -11 -10 -10 -10 -9 ------- Run | Yrd Mat Min Exi Min Robot Analysis Total 2 | . 2 . . . Derelict Logs Recovered 1 | . . 1 . . Drone Launches . | . . . . . Drone Recoveries . | . . . . . Exploration | -11 -10 -10 -10 -9 ------------- Run | Yrd Mat Min Exi Min Turns Passed 4077 | 3 1312 2021 493 248 Spaces Moved 1904 | 2 642 922 229 109 Core . | . . . . . Treads 17 | . 9 . . 8 Legs 280 | 2 278 . . . Wheels 1607 | . 355 922 229 101 Hover . | . . . . . Flight . | . . . . . Fastest Speed 110 | 120 110 215 215 200 Average Speed 195 | 120 157 215 215 214 Slowest Speed 480 | 120 240 215 215 480 Overloaded Moves . | . . . . . Propulsion Burnouts . | . . . . . Robots Hopped . | . . . . . Cave-ins Triggered . | . . . . . Exploration Rate (%) 56 | 1 88 100 60 31 Regions Visited 4 Branch Regions 3 Pre-discovered Areas 4 | . 2 1 1 . Known Exits Taken . | . . . . . Unknown Exits Taken 4 | 1 1 1 1 . Scrap Searched 3 | . . 1 . 2 Spaces Dug . | . . . . . Terrain Destroyed 143 | . 34 81 . 28 Melee . | . . . . . Projectile . | . . . . . AOE 143 | . 34 81 . 28 Terrain Rammed . | . . . . . Walls Destroyed . | . . . . . Machines Disabled . | . . . . . Actions | -11 -10 -10 -10 -9 --------- Run | Yrd Mat Min Exi Min Total 2118 | 2 823 945 230 118 Wait 86 | . 85 1 . . Move 1900 | 1 641 921 228 109 Hop . | . . . . . Pick Up 19 | . 11 6 2 . Fast Attach 6 | . 5 1 . . Attach 8 | . 2 1 . 5 Detach 3 | . 2 1 . . Swap 16 | 1 12 2 . 1 Drop 6 | . 6 . . . Fire 72 | . 59 10 . 3 Melee . | . . . . . Ram 2 | . . 2 . . Kick . | . . . . . Crush . | . . . . . Escape Stasis . | . . . . . Rewire . | . . . . . Trap . | . . . . . Miscellaneous . | . . . . . Route ------- -11/Scrapyard -10/Materials (discovered 3 exits: [*Mat x2] / [*Min]) -10/Mines (discovered 4 exits: [*Mat x2] / *Exi / [*Sub]) -10/Exiles -9/Mines (discovered 1 exit: [*Mat]) History --------- Turn | Location | Event 3 | -11/Scrapyard | Discovered new exit (range 1) 4 | -11/Scrapyard | Entered Materials 308 | -10/Materials | Build established: Mutant 791 | -10/Materials | Discovered new exit (range 8) 1014 | -10/Materials | Central database locked down 1165 | -10/Materials | Discovered new exit (range 15) 1290 | -10/Materials | Discovered new exit (range 12) 1316 | -10/Materials | Entered Mines 1616 | -10/Mines | Received a Rocket Launcher from a helpful Derelict 1694 | -10/Mines | Discovered new exit (range 9) 1871 | -10/Mines | Discovered new exit (range 6) 1943 | -10/Mines | Received a Mining Laser from a helpful Derelict 2006 | -10/Mines | Found a hidden stash of uninstalled traps 3167 | -10/Mines | Discovered new exit (range 6) 3326 | -10/Mines | Deemed a non-threat by the Exiles lab entrance 3326 | -10/Mines | Discovered new exit (range 5) 3337 | -10/Mines | Entered Exiles 3391 | -10/Exiles | Met 8R-AWN 3421 | -10/Exiles | Met EX-HEX 3486 | -10/Exiles | Met EX-BIN 3516 | -10/Exiles | Aligned with FarCom system 3518 | -10/Exiles | Given EX-Vault access code 3568 | -10/Exiles | Opened EX-Vault 3585 | -10/Exiles | Found Latent Energy Streamer 3627 | -10/Exiles | Warned to stay clear of 0b10 Research branches 3656 | -10/Exiles | Exiles lab attacked by MAIN.C 3702 | -10/Exiles | Learned location of Zion (-7) 3808 | -10/Exiles | Discovered new exit (range 11) 3830 | -10/Exiles | Left Exiles lab with Latent Energy Streamer 3830 | -10/Exiles | Entered Mines 3880 | -9/Mines | Met a Derelict bent on vengeance 3943 | -9/Mines | Discovered new exit (range 8) 4008 | -9/Mines | Assembled infested the area 4013 | -9/Mines | Assisted by a Guerilla fighting off Assembled 4043 | -9/Mines | Core integrity fell below 50% 4047 | -9/Mines | Core integrity fell below 20% 4078 | -9/Mines | Destroyed by D-53 Grenadier with Mini Grenade Launcher Last Messages --------------- 04052_ U-05 Engineer lays Concrete. 04053_ as-69553 destroyed. 04054_ U-05 Engineer builds a Wall. 04056_ as-38749 destroyed. 04056_ as-89654 destroyed. 04058_ The unstable cave ceiling collapses. 04058_ U-05 Engineer lays Concrete. 04064_ D-53 Grenadier reactivates. 04064_ U-05 Engineer lays Concrete. 04067_ The unstable cave ceiling collapses. 04067_ U-05 Engineer lays Concrete. 04067_ Lgt. Treads destroyed. 04068_ U-05 Engineer lays Concrete. 04070_ The unstable cave ceiling collapses. 04071_ U-05 Engineer builds a Wall. 04075_ The unstable cave ceiling collapses. 04075_ U-05 Engineer builds a Wall. 04076_ The unstable cave ceiling collapses. 04076_ Structural Scanner destroyed. 04077_ The unstable cave ceiling collapses. Map ----- +----------------------------------------------------+ | ?????????????????????????????????????????????????? | | ?????????????????????????????????????????????##### | | ????????????????????????????????????????????###### | | ????????????????????????????????????????????### | | ????????????????????????????????????????????## | | ????????????????????????????????????????????## | | ????????????????????????????????????????????## | | ????????????????????????????????????????????### | | ????????????????????????????????????????????### | | ?????????????????????????????????????????????### | | ?????????????????????????????????????????????### # | | ??????????????????????????????????????????????## # | | ????????????????????????####??????????????????## # | | ??????????????????????######????????????? #??## # | | ??????????????????????### ???????????? ###?## # | | ??????????????????????## ????????????? ###?## | | ??????????????????????## ????????????? ##?#### | | ??????????????????????## ???????????? #?#### | | ??????????????????????## ##???????????? ??????? | | ???????????????????## ## ##??????????## ? # | | ???????????????????## ## ####???????### ##?## # | | ???????????????????## ## #####?????### ##?## | | ???????????????????## ##?????### ##??## | | ???????????????????## #?????## ##??##### | | ???????????????????## $ ##????## ##???##### | | ???????????????????## @ ###????## ##???????? | | ??????????########### ######## ##???????? | | ??????????########### # ######## ########## | | ?????????? ## ### ########## | | ??????????????## ### #### | | ??????????????##### ### #### | | ??????????????###### ### ################ | | ?????????????????#### ### ################ | | ??????????????????#### u ### ##?????????????? | | ??????????????????? # ##d ### ##?????????????? | | ?????????????# ??? # d ### ##?????????????? | | ?????????????## ### ##?????????????? | | ?????????????## !%=%##?????????????? | | ?????????????## %= #######?????????????? | | ???????????? # #########?????????????? | | ???????????? ## ####??????????????????? | | ???????????? ### # ####????????????????????? | | ?????????????### # %" "# ####????????????????????? | | ??????????????## ### ???????????????????????????? | | ??????????????## ????????????????????????????? | | ??????????????????## ????????????????????????????? | | ??????????????????## ????????????????????????????? | | ?????????????????????????????????????????????????? | | ?????????????????????????????????????????????????? | | ?????????????????????????????????????????????????? | +----------------------------------------------------+ Best States ------------- Heat Dissipation 35 Energy Generation 14 Energy Capacity 250 Matter Stores 300 Matter Capacity 300 Sight Range 16 Robot Scan Range 14 Terrain Scan Density 10 Evasion (%) 55 Recoil Reduction 2 Item Schematics ----------------- None Robot Schematics ------------------ None Fabricated ------------ Nothing Alien Tech Used ----------------- None Achievements -------------- None Challenges ------------ None Game ------ Seed GatlingBackupWarhead Manual? 0 Play Time 00:21:43 Cumulative 85.6 hours Start 2024.07.14 @ 03:48:13 End 2024.07.14 @ 04:10:03 Sessions 1 Manual Loads 0 Difficulty Rogue Special Mode None Game No. 35 Rogue 35 Adventurer 0 Explorer 0 Win Type - Total 0 Types 0/0/0/0/0/0/0/0/0 Lore% 36 Gallery% 49 Achievement% 45 Wizard Run 0 Options --------- Layout 2 ASCII 0 Keyboard 1 Movement Numpad Keybinds 0 Fullscreen 2 Font 24/Smallcaps Map View 50x44 Zoom Use 0% Tactical HUD 1 Map Filters NONE Filters NONE Steam 1 RUN: 1f6916dd-06ec-4b66-97c9-e46131444d44